Cogmind - Beta 12 *** ADVENTURER MODE // 2024.01.31 @ 20:46:36 Player: Occam Result: Self-destructed Performance ------------- Evolutions (3) 1500 Regions Visited (10) 2000 Robots Destroyed (223) 1115 Value Destroyed (6611) 6611 Prototype IDs (21) 420 Alien Tech Used (0) 0 Bonus (410) 410 TOTAL SCORE: 12056 Bonus ------- High Alert Combat Kills 85 Follower Combat Kills 25 Met Data Miner 300 Cogmind --------- Core Integrity 480/700 Matter 263/300 Energy 194/290 System Corruption 6% Temperature Cool (0) Movement Treading (465) Ox4 Location -6/Proximity Caves Parts ------- > --- POWER (1) -------- Improved Deuterium Engine > --- PROPULSION (2) --- Advanced Treads > --- UTILITY (7) ------ Huge Storage Unit > --- WEAPON (3) ------- Gatling Laser > --- INVENTORY (25) --- Improved Deuterium Engine Armored Treads High-capacity Matter Pod (200) Structural Scanner Advanced Particle Charger Improved Shield Generator Makeshift Hacking Suite Authchip [Power] Authchip [Armor] Authchip [Weapon] Authchip [Weapon] Improved Trap Extractor (3/6 Shock) EM Pulse Cannon EM Pulse Cannon EM Pulse Cannon Neutron Cannon Improved Datajack Peak State ------------ > --- POWER ------------ Antimatter Reactor > --- PROPULSION ------- Armored Treads Advanced Treads > --- UTILITY ---------- Improved Heat Sink Advanced Heat Sink Huge Storage Unit Hardened Medium Armor Plating Layered Medium Armor Plating Experimental Thermal Shield Hardlight Generator > --- WEAPON ----------- Gatling Laser Gatling Laser Gatling Laser > --- INVENTORY -------- Improved Deuterium Engine Improved Deuterium Engine Advanced Treads High-capacity Matter Pod Structural Scanner Advanced Particle Charger Hardened Medium Armor Plating Improved Shield Generator Makeshift Hacking Suite Authchip [Power] Authchip [Armor] Authchip [Weapon] Authchip [Weapon] Improved Trap Extractor EM Pulse Cannon EM Pulse Cannon EM Pulse Cannon Neutron Cannon Rocket Launcher Improved Datajack Greatsword [Rating: 62] Favorites ----------- Power Cooled Ion Engine Engine Cooled Ion Engine Reactor Antimatter Reactor Propulsion Armored Wheel Treads Light Treads Leg Aluminum Leg Wheel Armored Wheel Flight Unit Improved Flight Unit Utility Huge Storage Unit Device Improved Heat Sink Storage Huge Storage Unit Processor Improved Targeting Computer Hackware Authchip [R/Combat] Protection Hardened Medium Armor Plating Weapon Gatling Laser Energy Gun Gatling Laser Energy Cannon Advanced Beam Cannon Ballistic Gun Assault Rifle Ballistic Cannon Flak Cannon Launcher Rocket Launcher Slashing Weapon Katana Special Melee Weapon Improved Datajack Build | -11 -10 -10 -9 -9 -8 -7 -7 -7 -7 -6 ------- Run | Jun Mat Min Mat Min Mat Fac Low Low Dat Pro Slots Evolved 6 | . . . 2 . 2 2 . . . . Power . | . . . . . . . . . . . Propulsion . | . . . . . . . . . . . Utility 5 | . . . 2 . 1 2 . . . . Weapon 1 | . . . . . 1 . . . . . Parts Attached 125 | 4 10 5 26 3 45 11 . 2 2 17 Power 10 | . 1 1 3 . 1 2 . . . 2 Engine 9 | . 1 1 3 . 1 2 . . . 1 Core . | . . . . . . . . . . . Reactor 1 | . . . . . . . . . . 1 Propulsion 24 | 2 6 . 5 2 6 . . . . 3 Treads 6 | 1 . . . . 2 . . . . 3 Leg 1 | . . . 1 . . . . . . . Wheel 16 | 1 6 . 3 2 4 . . . . . Hover . | . . . . . . . . . . . Flight 1 | . . . 1 . . . . . . . Utility 37 | 1 2 3 9 1 12 2 . 1 . 6 Device 22 | 1 . 3 4 . 8 2 . . . 4 Storage 3 | . 2 . . . 1 . . . . . Processor 1 | . . . . 1 . . . . . . Hackware 1 | . . . 1 . . . . . . . Protection 10 | . . . 4 . 3 . . 1 . 2 Artifact . | . . . . . . . . . . . Weapon 54 | 1 1 1 9 . 26 7 . 1 2 6 Energy Gun 16 | . 1 . 3 . 3 4 . . 2 3 Energy Cannon 10 | . . . 3 . 6 . . . . 1 Ballistic Gun 5 | 1 . 1 2 . 1 . . . . . Ballistic Cannon 9 | . . . . . 9 . . . . . Launcher 4 | . . . 1 . 1 1 . . . 1 Special Weapon . | . . . . . . . . . . . Impact Weapon . | . . . . . . . . . . . Slashing Weapon 9 | . . . . . 6 1 . 1 . 1 Piercing Weapon . | . . . . . . . . . . . Special Melee Weapon 1 | . . . . . . 1 . . . . Unidentified Prototypes 7 | . . . 4 . 1 . . . . 2 Parts Lost 20 | . . . 1 1 2 . . 2 . 14 Power 1 | . . . . . . . . . . 1 Propulsion 3 | . . . . 1 . . . . . 2 Utility 10 | . . . . . 2 . . 2 . 6 Weapon 6 | . . . 1 . . . . . . 5 Highest Loss Streak 11 | . . . 1 1 1 . . 1 . 11 To Critical Strikes 1 | . . . . . . . . . . 1 Average Slot Usage (%) 99 | . 99 100 99 99 99 100 100 99 87 98 Engine 9 | . 14 14 11 11 8 7 7 7 7 1 Treads 1 | . 9 . . . 1 . . . . 1 Wheel 18 | . 18 28 21 21 16 15 15 15 15 12 Device 21 | . 14 14 21 11 18 30 30 29 23 29 Storage 9 | . 13 14 11 11 8 7 7 7 7 7 Processor 2 | . . . . 10 7 . . . . . Protection 9 | . . . 10 11 9 15 15 14 15 14 Energy Gun 11 | . 14 14 4 . 1 21 23 22 14 22 Energy Cannon 6 | . . . 13 22 12 . . . . . Ballistic Gun 3 | . 14 14 4 . . . . . . . Ballistic Cannon 2 | . . . . . 12 . . . . . Naked Turns . | . . . . . . . . . . . Heaviest Build 141 | 15 91 98 105 105 125 132 132 132 130 141 Greatest Support 44 | 20 24 24 24 24 44 24 24 24 24 44 Greatest Overweight (x) 11 | 1 7 4 8 4 9 5 5 5 5 11 Average Overweight (x) 4 | . 3 3 3 4 4 5 5 5 5 5 Largest Inventory Capacity 25 | 8 25 25 25 25 25 25 25 25 25 25 Average Capacity 24 | 8 21 25 25 25 24 25 25 25 25 25 Most Carried 25 | 8 23 25 25 25 25 25 25 25 25 25 Average Carried 23 | 3 13 24 24 24 24 24 25 24 24 24 Final Capacity 25 | 8 25 25 25 25 25 25 25 25 25 25 Final Carried 25 | 4 23 25 25 24 25 25 25 25 25 17 Class Distribution -------------------- 48% | Mutant 29% | Tank 10% | Scavenger-Tank 8% | Gunner 3% | Scavenger-Mutant Dominant Class ---------------- Mutant | -10/Materials Mutant | -10/Mines Mutant | -9/Materials Mutant | -9/Mines Gunner | -8/Materials Tank | -7/Factory Tank | -7/Lower Caves Tank | -7/Lower Caves Tank | -7/Data Miner Scavenger-Tank | -6/Proximity Caves Resources | -11 -10 -10 -9 -9 -8 -7 -7 -7 -7 -6 ----------- Run | Jun Mat Min Mat Min Mat Fac Low Low Dat Pro Matter Collected 3320 | 258 355 237 448 30 1467 285 10 15 . 215 Remotely . | . . . . . . . . . . . Salvage Created 8495 | 71 806 754 2015 587 1903 691 76 495 . 1097 Parts 386 | 5 44 39 118 28 87 25 7 18 . 15 Haulers Intercepted 11 | . . . 4 . 6 1 . . . . Recyclers Shooed 5 | . 2 1 . . 2 . . . . . Parts Field Recycled . | . . . . . . . . . . . Retrieved Matter . | . . . . . . . . . . . Parts Self-Destructed 48 | . . . . . . . 10 20 . 18 Prevented . | . . . . . . . . . . . Kills | -11 -10 -10 -9 -9 -8 -7 -7 -7 -7 -6 ------- Run | Jun Mat Min Mat Min Mat Fac Low Low Dat Pro Combat Hostiles Destroyed 163 | . 15 13 34 16 34 10 3 14 . 24 Melee 1 | . . . . . . . . . . 1 Guns 88 | . 15 13 15 . . 10 3 13 . 19 Cannons 64 | . . . 18 15 31 . . . . . AOE 2 | . . . 1 . . . . . . 1 Classes Destroyed 16 | 2 4 1 4 1 3 . . . . 1 Worker 10 | . . 1 1 3 4 1 . . . . Builder 7 | . 1 . 4 . 2 . . . . . Tunneler 6 | 1 . 3 . 1 1 . . . . . Hauler 11 | . . . 4 . 6 1 . . . . Recycler 13 | 1 2 3 3 2 . 2 . . . . Mechanic 1 | . . . . . 1 . . . . . Operator 3 | . . . 2 . 1 . . . . . Watcher 15 | . 3 . 5 . 5 2 . . . . Swarmer 34 | . 3 1 6 4 4 3 2 7 . 4 Grunt 86 | . 12 12 16 6 19 4 . 4 . 13 Brawler 6 | . . . 2 . . 1 . 1 . 2 Duelist 3 | . . . . . 1 . . 1 . 1 Sentry 22 | . . . 10 . 9 1 . 1 . 1 Hunter 5 | . . . . . 1 1 1 . . 2 Behemoth 1 | . . . . . . . . . . 1 Assembled 6 | . . . . 6 . . . . . . Best Kill Streak 7 | 2 5 5 7 5 7 5 2 5 . 5 Combat Bots Only 5 | . 5 4 5 4 4 3 2 5 . 5 Max Kills in Single Turn 2 | 1 1 2 2 2 2 2 1 2 . 2 Gunslinging 1 | . . 1 1 . . . . . . . Exploded 1 | . . . 1 . . . . . . 1 Melee 1 | . . . . . . . . . . 1 Uniques/NPCs Destroyed . | . . . . . . . . . . . Combat | -11 -10 -10 -9 -9 -8 -7 -7 -7 -7 -6 -------- Run | Jun Mat Min Mat Min Mat Fac Low Low Dat Pro Damage Taken 4910 | . 213 223 601 195 1171 328 91 575 . 1513 Core 740 | . 44 49 53 36 338 35 9 17 . 159 Absorbed by Shields 880 | . . . . . 228 56 36 152 . 408 Regen/Repaired (Parts) 993 | . 262 . 89 . 642 . . . . . Core Remaining (%) 69 | 100 . 62 . 77 38 . . . . . Volleys Fired 406 | 6 41 51 94 31 95 18 5 19 . 46 Largest 3 | 2 2 2 2 2 3 3 3 3 . 3 Hottest 240 | 70 85 90 136 136 204 240 240 240 . 240 Shots Fired 968 | 12 82 102 188 62 273 54 15 54 . 126 Gun 537 | 12 82 102 94 . . 54 15 54 . 124 Cannon 429 | . . . 94 62 273 . . . . . Launcher 2 | . . . . . . . . . . 2 Special . | . . . . . . . . . . . Kinetic 271 | 6 41 51 47 . 126 . . . . . Thermal 695 | 6 41 51 141 62 147 54 15 54 . 124 Explosive 2 | . . . . . . . . . . 2 Electromagnetic . | . . . . . . . . . . . Robot Hit Streak 52 | 10 14 32 27 19 35 52 24 24 . 44 Robot Miss Streak 8 | . 2 2 4 2 8 3 3 5 . 4 Penetration Max . | . . . . . . . . . . . Secondary Targets 9 | . . 4 2 . . 1 . 1 . 1 Max Gunslinging Chain 1 | . . 1 1 . . 1 . 1 . 1 Shots Hit Robots 768 | 10 57 79 122 45 213 51 12 52 . 127 Core Hits 457 | 3 27 26 58 22 138 41 6 38 . 98 Critical Kills 2 | . . . . . 2 . . . . . Critical Parts Destroyed . | . . . . . . . . . . . Critical Strikes 12 | . 5 . 3 . 2 . . . . 2 Burn 8 | . 5 . 3 . . . . . . . Meltdown 2 | . . . . . 2 . . . . . Sever 2 | . . . . . . . . . . 2 Melee Attacks 17 | . . . . . 7 4 . 1 . 5 Impact . | . . . . . . . . . . . Slashing 16 | . . . . . 7 3 . 1 . 5 Piercing . | . . . . . . . . . . . Sneak Attacks 1 | . . . . . . 1 . . . . Combat Hostiles 1 | . . . . . . 1 . . . . Follow-up Attacks . | . . . . . . . . . . . Damage Inflicted 15797 | 125 865 1252 2683 1011 3912 1129 196 1126 . 3498 Guns 8685 | 125 865 1252 1031 . . 1129 196 1126 . 2961 Cannons 6230 | . . . 1307 1011 3912 . . . . . Explosions 702 | . . . 345 . . . . . . 357 Melee 180 | . . . . . . . . . . 180 Ramming . | . . . . . . . . . . . Kinetic 2754 | 51 322 523 407 . 1451 . . . . . Thermal 12161 | 74 543 729 1931 1011 2461 1129 196 1126 . 2961 Explosive 702 | . . . 345 . . . . . . 357 Electromagnetic . | . . . . . . . . . . . Impact . | . . . . . . . . . . . Slashing 180 | . . . . . . . . . . 180 Piercing . | . . . . . . . . . . . Highest Corruption 6 | . 1 1 . . . . . . . 6 Average Corruption 1 | . 1 1 . . . . . . . 3 Corruption Purged . | . . . . . . . . . . . Corruption Blocked . | . . . . . . . . . . . Effects 21 | . 12 8 . . . . . . . 1 Message Errors 3 | . 1 2 . . . . . . . . Matter Fused 8 | . 4 3 . . . . . . . 1 Heat Flow Errors 2 | . 1 1 . . . . . . . . Energy Discharges 4 | . 3 1 . . . . . . . . Data Loss (minor) 1 | . . 1 . . . . . . . . Data Loss (major) 1 | . 1 . . . . . . . . . Misfires 1 | . 1 . . . . . . . . . Weapon Failures 1 | . 1 . . . . . . . . . Overload Shots . | . . . . . . . . . . . Overflow Damage 193 | . . . 150 34 9 . . . . . Projectiles 106 | . . . 63 34 9 . . . . . Explosions 87 | . . . 87 . . . . . . . Melee . | . . . . . . . . . . . Knockbacks 38 | . . . . . 38 . . . . . Impact . | . . . . . . . . . . . Kinetic 37 | . . . . . 37 . . . . . Secondary 1 | . . . . . 1 . . . . . Self-Inflicted Damage 151 | . . . 90 . . . . . . 61 Shots 4 | . . . 2 . . . . . . 2 Rammed . | . . . . . . . . . . . Targets Rammed . | . . . . . . . . . . . Kicked . | . . . . . . . . . . . Crushed . | . . . . . . . . . . . Highest Temperature 748 | 27 231 224 435 186 748 223 170 300 . 658 Average Temperature 107 | 11 51 74 56 66 164 81 80 109 . 189 Received Heat Transfer 2047 | . 138 138 249 75 703 120 . 186 . 438 Effects 55 | . . . 1 . 44 1 . 1 . 8 Shutdowns 4 | . . . 1 . 2 . . . . 1 Energy Bleed 10 | . . . . . 8 1 . 1 . . Interference 12 | . . . . . 11 . . . . 1 Matter Decay 6 | . . . . . 5 . . . . 1 Short Circuit 3 | . . . . . 2 . . . . 1 Damage (minor) 4 | . . . . . 4 . . . . . Damage (major) 14 | . . . . . 10 . . . . 4 Damage (core) 2 | . . . . . 2 . . . . . Siege Activations . | . . . . . . . . . . . Robots Corrupted . | . . . . . . . . . . . Combat Hostiles . | . . . . . . . . . . . Parts Fried . | . . . . . . . . . . . Impact Corruptions . | . . . . . . . . . . . Robots Melted 8 | . . . . 1 3 . . 1 . 3 Combat Hostiles 8 | . . . . 1 3 . . 1 . 3 Parts Melted 56 | 1 1 . 8 2 12 4 . 10 . 18 Heat Transferred 25407 | 222 1665 1628 3848 1739 4255 2475 450 2500 . 6625 Parts Sabotaged 2 | . . . . . . . . . . 2 Parts Stolen . | . . . . . . . . . . . Parts Stripped . | . . . . . . . . . . . Power Chain Reactions . | . . . . . . . . . . . Missiles Intercepted . | . . . . . . . . . . . Alert | -11 -10 -10 -9 -9 -8 -7 -7 -7 -7 -6 ------- Run | Jun Mat Min Mat Min Mat Fac Low Low Dat Pro Peak Influence 602 | 10 409 205 602 165 339 128 . . . . Initial 31 | . 5 . 29 31 1 . . . . . Average 126 | 3 209 47 213 61 124 45 . . . . Maximum Alert Level 2 | . 2 1 2 . 1 . . . . . Low Security (%) 77 | 100 52 94 52 100 81 100 . . . . Level 1 18 | . 47 5 29 . 18 . . . . . Level 2 3 | . . . 17 . . . . . . . Level 3 . | . . . . . . . . . . . Level 4 . | . . . . . . . . . . . Level 5 . | . . . . . . . . . . . High Security . | . . . . . . . . . . . Max Security . | . . . . . . . . . . . Squads Dispatched 21 | . 3 1 9 . 4 2 . 1 . 1 Investigation 12 | . 3 1 6 . 1 1 . . . . Extermination . | . . . . . . . . . . . Reinforcement 7 | . . . 3 . 3 1 . . . . Assault 2 | . . . . . . . . 1 . 1 Garrison . | . . . . . . . . . . . Intercept . | . . . . . . . . . . . Searches Triggered . | . . . . . . . . . . . Construction Impeded 1 | . . . . . 1 . . . . . Haulers Reinforced . | . . . . . . . . . . . Active Scanning Responses . | . . . . . . . . . . . Cargo Convoy Interrupts . | . . . . . . . . . . . Stealth | -11 -10 -10 -9 -9 -8 -7 -7 -7 -7 -6 --------- Run | Jun Mat Min Mat Min Mat Fac Low Low Dat Pro Distress Signals 8 | . 1 . 3 1 3 . . . . . Communications Jammed . | . . . . . . . . . . . Distress Signals . | . . . . . . . . . . . Times Spotted 211 | . 23 18 50 15 42 12 4 15 . 32 Peak Tracking Total 9 | . 5 3 5 3 4 3 3 6 . 9 Tactical Retreats 7 | . 1 1 1 . 1 . . 3 . . Traps | -11 -10 -10 -9 -9 -8 -7 -7 -7 -7 -6 ------- Run | Jun Mat Min Mat Min Mat Fac Low Low Dat Pro Traps Triggered 8 | . 3 . 2 . 1 2 . . . . Indirectly . | . . . . . . . . . . . Trap Hack Attempts . | . . . . . . . . . . . Triggered . | . . . . . . . . . . . Disarmed . | . . . . . . . . . . . Reprogrammed . | . . . . . . . . . . . Reused . | . . . . . . . . . . . Traps Extracted . | . . . . . . . . . . . Installed . | . . . . . . . . . . . Triggered . | . . . . . . . . . . . Most Traps Carried 3 | . . 3 3 3 3 3 3 3 3 3 Machines | -11 -10 -10 -9 -9 -8 -7 -7 -7 -7 -6 ---------- Run | Jun Mat Min Mat Min Mat Fac Low Low Dat Pro Machines Disabled 6 | . . . 4 . 2 . . . . . Max in Single Turn 2 | . . . 2 . 1 . . . . . Garrison Access 2 | . . . . . 1 1 . . . . Machines Repaired . | . . . . . . . . . . . Machines Sabotaged . | . . . . . . . . . . . Overloaded Fab Kills . | . . . . . . . . . . . Hacking | -11 -10 -10 -9 -9 -8 -7 -7 -7 -7 -6 --------- Run | Jun Mat Min Mat Min Mat Fac Low Low Dat Pro Machines Accessed 52 | . 11 2 15 . 13 5 1 1 4 . Terminals 31 | . 8 1 10 . 9 3 . . . . Fabricators 1 | . . . . . . 1 . . . . Repair Stations 4 | . 1 . 1 . 2 . . . . . Recycling Units 4 | . 2 . 2 . . . . . . . Scanalyzers 3 | . . . 2 . 1 . . . . . Garrison Access 2 | . . . . . 1 1 . . . . Total Hacks 189 | . 38 7 54 . 49 11 1 1 28 . Successful 131 | . 25 2 37 . 33 4 1 1 28 . Failed 56 | . 12 5 16 . 16 7 . . . . Catastrophic 9 | . . 2 4 . 2 1 . . . . Database Lockouts 2 | . 1 . 1 . . . . . . . Manual 88 | . 24 5 30 . 22 7 . . . . Terminals 103 | . 30 6 33 . 27 7 . . . . Fabricators 2 | . . . . . . 2 . . . . Repair Stations 23 | . 2 . 4 . 17 . . . . . Recycling Units 15 | . 6 . 9 . . . . . . . Scanalyzers 12 | . . . 8 . 4 . . . . . Garrison Access 3 | . . . . . 1 2 . . . . Terminal Hacks 71 | . 14 2 16 . 8 1 1 1 28 . Record 11 | . . . . . . . . . 11 . Part Schematic 10 | . . . . . . . . . 10 . Robot Schematic 4 | . . . . . . . . . 4 . Robot Analysis 11 | . 4 . 4 . 3 . . . . . Prototype ID Bank 5 | . 1 . 1 . . . . . 3 . Open Door 3 | . . 1 . . . . 1 1 . . Branch Access Points 3 | . 1 . . . 1 1 . . . . Terminal Index 3 | . 1 . 1 . 1 . . . . . Alert Level 4 | . 1 . 3 . . . . . . . Unreport Threat 2 | . . . 2 . . . . . . . Locate Traps 7 | . 4 . 2 . 1 . . . . . Dispatch Records 1 | . . . 1 . . . . . . . Patrol Status 1 | . . 1 . . . . . . . . Recall Reinforcements 1 | . . . . . 1 . . . . . Hauler Manifests 3 | . 1 . 1 . 1 . . . . . Registered Prototypes 1 | . . . 1 . . . . . . . Zone Layout 1 | . 1 . . . . . . . . . Fabricator Hacks . | . . . . . . . . . . . Repair Station Hacks 21 | . 2 . 4 . 15 . . . . . Scan Component 11 | . 1 . 2 . 8 . . . . . Repair 10 | . 1 . 2 . 7 . . . . . Recycling Unit Hacks 6 | . 3 . 3 . . . . . . . Report Inventory 3 | . 1 . 2 . . . . . . . Retrieve Components 3 | . 2 . 1 . . . . . . . Scanalyzer 12 | . . . 8 . 4 . . . . . Insert Component 6 | . . . 4 . 2 . . . . . Analyze 6 | . . . 4 . 2 . . . . . Garrison Access Hacks 2 | . . . . . 1 1 . . . . Seal Access 2 | . . . . . 1 1 . . . . Unauthorized Hacks 19 | . 6 . 6 . 5 2 . . . . Terminals 13 | . 3 . 3 . 5 2 . . . . Botnet 13 | . 3 . 3 . 5 2 . . . . Fabricators . | . . . . . . . . . . . Repair Stations . | . . . . . . . . . . . Recycling Units 6 | . 3 . 3 . . . . . . . Reject 1 | . . . 1 . . . . . . . Recyclers 2 | . 1 . 1 . . . . . . . Mask 1 | . . . 1 . . . . . . . Tunnel 2 | . 2 . . . . . . . . . Scanalyzers . | . . . . . . . . . . . Garrison Access . | . . . . . . . . . . . Data Cores Recovered 1 | . . . . . 1 . . . . . Used 1 | . . . . . 1 . . . . . Hacking Detections 38 | . 8 1 13 . 12 4 . . . . Full Trace Events 7 | . . 1 4 . 1 1 . . . . Feedback Events . | . . . . . . . . . . . Feedback Blocked . | . . . . . . . . . . . Robot Schematics Acquired 4 | . . . . . . . . . 4 . Robots Built . | . . . . . . . . . . . Authchips . | . . . . . . . . . . . Time . | . . . . . . . . . . . Total Robot Build Rating . | . . . . . . . . . . . Part Schematics Acquired 16 | . . . 4 . 2 . . . 10 . Parts Built . | . . . . . . . . . . . Authchips . | . . . . . . . . . . . Time . | . . . . . . . . . . . Total Part Build Rating . | . . . . . . . . . . . Parts Repaired 10 | . 1 . 2 . 7 . . . . . Time 351 | . 26 . 58 . 267 . . . . . Parts Recycled . | . . . . . . . . . . . Recycled Matter . | . . . . . . . . . . . Retrieved Matter . | . . . . . . . . . . . Retrieved Components 13 | . 10 . 3 . . . . . . . Parts Scanalyzed 6 | . . . 4 . 2 . . . . . Part Schematics Acquired 6 | . . . 4 . 2 . . . . . Parts Damaged . | . . . . . . . . . . . Bothacking | -11 -10 -10 -9 -9 -8 -7 -7 -7 -7 -6 ------------ Run | Jun Mat Min Mat Min Mat Fac Low Low Dat Pro Used RIF Installer . | . . . . . . . . . . . Robots Hacked . | . . . . . . . . . . . Non-combat . | . . . . . . . . . . . Combat . | . . . . . . . . . . . Robot Hacks Applied . | . . . . . . . . . . . Relay Couplers Released . | . . . . . . . . . . . Fabnet Peak Effective % . | . . . . . . . . . . . Robots Rewired 1 | . . . . . . 1 . . . . Allies Hacked . | . . . . . . . . . . . Hacks Repelled . | . . . . . . . . . . . Allies | -11 -10 -10 -9 -9 -8 -7 -7 -7 -7 -6 -------- Run | Jun Mat Min Mat Min Mat Fac Low Low Dat Pro Total Allies 5 | . . 3 . . . 1 . . . 1 Largest Group 2 | . . 2 . . . 1 . . . 1 Highest-Rated Group 96 | . . 39 . . . 16 . . . 96 Highest-Rated Ally 96 | . . 31 . . . 16 . . . 96 Total Orders . | . . . . . . . . . . . Ally Attacks 12 | . . 7 . . . 3 . . . 2 Total Damage 209 | . . 84 . . . 30 . . . 95 Kills 1 | . . 1 . . . . . . . . Allies Corrupted . | . . . . . . . . . . . Allies Melted . | . . . . . . . . . . . Intel | -11 -10 -10 -9 -9 -8 -7 -7 -7 -7 -6 ------- Run | Jun Mat Min Mat Min Mat Fac Low Low Dat Pro Robot Analysis Total 11 | . 4 . 4 . 3 . . . . . Derelict Logs Recovered 9 | . . 2 . 1 . . 1 2 . 3 Drone Launches . | . . . . . . . . . . . Drone Recoveries . | . . . . . . . . . . . Exploration | -11 -10 -10 -9 -9 -8 -7 -7 -7 -7 -6 ------------- Run | Jun Mat Min Mat Min Mat Fac Low Low Dat Pro Turns Passed 13914 | 69 1255 1541 2290 1303 2804 992 675 1140 141 1704 Spaces Moved 7093 | 16 721 695 1167 791 1274 520 382 623 84 820 Core . | . . . . . . . . . . . Treads 32 | . . . . . 10 . . . . 22 Legs 2 | 2 . . . . . . . . . . Wheels 7059 | 14 721 695 1167 791 1264 520 382 623 84 798 Hover . | . . . . . . . . . . . Flight . | . . . . . . . . . . . Fastest Speed 95 | 95 95 135 135 150 150 165 165 165 165 165 Average Speed 154 | 98 142 135 149 150 152 165 165 165 165 176 Slowest Speed 385 | 120 195 150 210 150 305 165 165 165 165 385 Overloaded Moves . | . . . . . . . . . . . Propulsion Burnouts . | . . . . . . . . . . . Robots Hopped . | . . . . . . . . . . . Cave-ins Triggered . | . . . . . . . . . . . Exploration Rate (%) 70 | 2 95 96 96 99 90 15 54 72 71 88 Regions Visited 10 Branch Regions 6 Pre-discovered Areas 9 | . 2 2 . 2 . . 1 . 1 1 Known Exits Taken 2 | . 1 . . . . 1 . . . . Unknown Exits Taken 8 | 1 . 1 1 1 1 . 1 1 1 . Scrap Searched 11 | . . 1 . 1 . . 4 3 . 2 Spaces Dug 10 | . . . . . 7 2 . 1 . . Terrain Destroyed 97 | . . . 60 2 7 2 . 1 . 25 Melee 10 | . . . . . 7 2 . 1 . . Projectile 2 | . . . . 2 . . . . . . AOE 85 | . . . 60 . . . . . . 25 Terrain Rammed . | . . . . . . . . . . . Walls Destroyed . | . . . . . . . . . . . Machines Disabled . | . . . . . . . . . . . Actions | -11 -10 -10 -9 -9 -8 -7 -7 -7 -7 -6 --------- Run | Jun Mat Min Mat Min Mat Fac Low Low Dat Pro Total 9159 | 58 862 1200 1546 847 1920 598 413 683 87 945 Wait 1283 | 27 59 434 187 19 419 33 27 32 . 46 Move 7083 | 15 720 694 1166 790 1273 519 381 622 83 820 Hop . | . . . . . . . . . . . Pick Up 123 | 1 26 8 28 2 47 5 . 4 1 1 Fast Attach 46 | 1 5 1 14 . 16 3 . . . 6 Attach 32 | 2 . 1 5 1 9 2 . 2 2 8 Detach 18 | 2 3 . 6 . 4 . . . . 3 Swap 47 | 1 5 3 7 2 20 6 . . . 3 Drop 104 | 3 3 8 39 2 30 8 . 3 1 7 Fire 406 | 6 41 51 94 31 95 18 5 19 . 46 Melee 17 | . . . . . 7 4 . 1 . 5 Ram . | . . . . . . . . . . . Kick . | . . . . . . . . . . . Crush . | . . . . . . . . . . . Escape Stasis . | . . . . . . . . . . . Rewire . | . . . . . . . . . . . Trap . | . . . . . . . . . . . Miscellaneous . | . . . . . . . . . . . Route ------- -11/Junkyard -10/Materials (discovered 4 exits: *Mat x3 / *Min) -10/Mines -9/Materials (discovered 5 exits: *Mat x3 / [*Min x2]) -9/Mines (discovered 2 exits: *Mat x2) -8/Materials (discovered 4 exits: *Fac x3 / *Sto) -7/Factory (discovered 3 exits: [*Fac] / *Low x2) -7/Lower Caves -7/Lower Caves (discovered 2 exits: [*Fac] / *Dat) -7/Data Miner -6/Proximity Caves History --------- Turn | Location | Event 1 | -11/Junkyard | Discovered new exit (range 0) 70 | -11/Junkyard | Entered Materials 257 | -10/Materials | Discovered new exit (range 15) 311 | -10/Materials | Build established: Mutant 594 | -10/Materials | Central database locked down 594 | -10/Materials | Discovered new exit (range 22) 871 | -10/Materials | Repaired Huge Storage Unit 980 | -10/Materials | Discovered new exit (range 9) 1104 | -10/Materials | Discovered new exit (range 13) 1169 | -10/Materials | Identified exit to Mines 1325 | -10/Materials | Entered Mines 1334 | -10/Mines | Met a Derelict bent on vengeance 1425 | -10/Mines | Received a Mining Laser from a helpful Derelict 1431 | -10/Mines | Learned location of Zion (-6) 1804 | -10/Mines | Excavation squad dispatched 1804 | -10/Mines | A large section of the Mines collapsed 2054 | -10/Mines | Excavation squad dispatched 2304 | -10/Mines | Excavation squad dispatched 2376 | -10/Mines | Discovered new exit (range 15) 2478 | -10/Mines | Met a Derelict who couldn't figure out how to use a Trap Extractor 2606 | -10/Mines | Joined a pair of Derelicts in attacking an 0b10 outpost 2740 | -10/Mines | Found a hidden stash of uninstalled traps 2866 | -10/Mines | Entered Materials 2866 | -9/Materials | Evolved 2 slots: Utility x2 3086 | -9/Materials | Repaired Structural Scanner 3404 | -9/Materials | Discovered new exit (range 15) 3834 | -9/Materials | Discovered new exit (range 3) 4005 | -9/Materials | Discovered new exit (range 13) 4189 | -9/Materials | Discovered new exit (range 14) 4433 | -9/Materials | Central database locked down 4563 | -9/Materials | Discovered new exit (range 9) 5038 | -9/Materials | Repaired Med. Armor Plating 5156 | -9/Materials | Entered Mines 5157 | -9/Mines | Assembled infested the area 5533 | -9/Mines | Received a Rocket Launcher from a helpful Derelict 5743 | -9/Mines | Discovered new exit (range 12) 5885 | -9/Mines | Discovered new exit (range 14) 6459 | -9/Mines | Entered Materials 6459 | -8/Materials | Evolved 2 slots: Utility x1, Weapon x1 6769 | -8/Materials | Build established: Gunner 6900 | -8/Materials | Identified exit to Storage 7581 | -8/Materials | Discovered new exit (range 12) 7774 | -8/Materials | Discovered new exit (range 16) 8127 | -8/Materials | Discovered new exit (range 15) 8315 | -8/Materials | Build established: Tank 8407 | -8/Materials | Repaired Arm. Wheel 8435 | -8/Materials | Repaired Huge Storage Unit 8556 | -8/Materials | Repaired Arm. Wheel 8608 | -8/Materials | Repaired Cld. Ion Engine 8648 | -8/Materials | Repaired Hardlight Generator 8770 | -8/Materials | Core integrity fell below 50% 8917 | -8/Materials | Repaired Broken Arm. Wheel 8961 | -8/Materials | Repaired Broken Arm. Wheel 9263 | -8/Materials | Entered Factory 9263 | -7/Factory | Evolved 2 slots: Utility x2 9872 | -7/Factory | Discovered new exit (range 5) 9926 | -7/Factory | Identified exit to Lower Caves 10255 | -7/Factory | Entered Lower Caves 10671 | -7/Lower Caves | Discovered new exit (range 15) 10930 | -7/Lower Caves | Entered another Lower Caves area 10955 | -7/Lower Caves | Discovered new exit (range 7) 10962 | -7/Lower Caves | Learned Factory terminal intel 11243 | -7/Lower Caves | Encountered a Warlord checkpoint 11286 | -7/Lower Caves | Learned location of 2 exits from Factory 11691 | -7/Lower Caves | Attracted the attention of an 0b10 outpost 11796 | -7/Lower Caves | Spotted B-75 Beast 11804 | -7/Lower Caves | Discovered new exit (range 11) 12070 | -7/Lower Caves | Entered Data Miner 12070 | -7/Data Miner | Discovered new exit (range 6) 12102 | -7/Data Miner | Met Data Miner 12132 | -7/Data Miner | Learned location of Section 7 (-2) 12132 | -7/Data Miner | Acquired the access code to Warlord's prototype stash 12165 | -7/Data Miner | Received God Mode back door access code from Data Miner 12211 | -7/Data Miner | Entered Proximity Caves 12495 | -6/Proximity Caves | Found Prototype Device 12495 | -6/Proximity Caves | Identified Exp. Thermal Shield 12695 | -6/Proximity Caves | Attracted the attention of an 0b10 checkpoint 12782 | -6/Proximity Caves | Build established: Scavenger-Tank 13388 | -6/Proximity Caves | Learned Factory stockpile data 13719 | -6/Proximity Caves | Spotted B-75 Beast 13778 | -6/Proximity Caves | Destroyed B-75 Beast 13867 | -6/Proximity Caves | Attracted the attention of an 0b10 outpost 13915 | -6/Proximity Caves | Self-destructed Last Messages --------------- 13900_ Cesium-ion Thruster fries itself beyond repair. 13900_ Penetrated by Slug. 13900_ L-41 Fighter destroyed. 13901_ Carbon-fiber Leg fries itself beyond repair. 13902_ Penetrated by Slug. 13904_ Antimatter Reactor destroyed. 13906_ B-48 Gladiator Imp. Light Armor Plating severed. 13907_ Adv. Heat Sink destroyed. 13907_ System corrupted by crushing effect (+2). 13908_ Penetrated by Slug. 13912_ The unstable cave ceiling collapses. 13912_ Adv. Treads crushed. 13912_ B-48 Gladiator Lgt. Treads severed. 13912_ Critical hit (Smash). 13912_ Exp. Thermal Shield destroyed. 13912_ System corrupted by crushing effect (+4). 13913_ System corrupted: Matter fused (-10). 13913_ Segregator fries itself beyond repair. 13914_ Penetrated by Slug. 13914_ Greatsword destroyed. Map ----- +----------------------------------------------------+ | ????????????????????????????????????????? | | ????????????????????????????????????????? | | ????????????????????????????????????????? | | ????????????????????????????????????????? | | ????????????????????????????????????????? | | ????????????????????????????????????????? | | ????????????????????????????????????????? | | ???????????????????????????????????????? | | ???????????????????????????????????????? | | ##?????????????????????????????????????? | | #?????????????????????????????????????? | | #?????????????????????????????????????? | | ####??????????????????????????????????? | | ##?????????????????????????????????? | | #?????????????????????????????????? | | % #??????########??##???????????????? | | # #????? ?? ???????????????? | | ?# #???? ?? ###+####???????????? | | ## ##??# #??## #g "#?#?????????? | | # #### #### #b "# #?????????? | | #" "#g##????????? | | #" #????????? | | ##? #" % #????????? | | ### #" %% #????????? | | ## ### !bY ##????????? | | ## ##" ## g %@%% #????????? | | ### ##??# ## #????????? | | #?# ###???###; #; ##????????? | | ###%"####???## ######?????????? | | ###" % ###?#; ##??????????????? | | ###??# ""#### #???????????????? | | ?????#### % #???????????????? | | ???????#" #???????????????? | | ???????############## ##???????????????? | | ????????????????????####????????????????? | | ????????????????????????????????????????? | | ????????????????????????????????????????? | | ????????????????????????????????????????? | | ????????????????????????????????????????? | | ????????????????????????????????????????? | | ????????????????????????????????????????? | | ????????????????????????????????????????? | | ????????????????????????????????????????? | | ????????????????????????????????????????? | | ????????????????????????????????????????? | | ????????????????????????????????????????? | | ????????????????????????????????????????? | | ????????????????????????????????????????? | | ????????????????????????????????????????? | | ????????????????????????????????????????? | +----------------------------------------------------+ Best States ------------- Heat Dissipation 70 Energy Generation 21 Energy Capacity 325 Matter Stores 300 Matter Capacity 300 Sight Range 16 Terrain Scan Density 10 Armor Coverage 450 Resistance: KI 20 Resistance: TH 50 Resistance: EX 20 Resistance: EM 20 Resistance: I 20 Resistance: S 20 Resistance: P 20 Evasion (%) 41 Targeting Accuracy 6 Recoil Reduction 2 Offensive Hacking 10 Authchip Count 4 Item Schematics ----------------- Datajack | -9/Materials | Scanalyzed ECM Suite | -9/Materials | Scanalyzed Structural Scanner | -9/Materials | Scanalyzed Hacking Suite | -9/Materials | Scanalyzed Rocket Launcher | -8/Materials | Scanalyzed Hrd. Medium Armor Plating | -8/Materials | Scanalyzed Combat Drone Bay | -7/Data Miner | Free Lgt. Regenerative Plating | -7/Data Miner | Free Biomechanical Wings | -7/Data Miner | Free Exp. Power Shielding | -7/Data Miner | Free Antimatter Cannon | -7/Data Miner | Free Field Propulsion Drive | -7/Data Miner | Free Imp. Launcher Guidance Computer | -7/Data Miner | Free Lrn. Proton Cannon | -7/Data Miner | Free HERF Cannon | -7/Data Miner | Free Adv. Coolant Injector | -7/Data Miner | Free Robot Schematics ------------------ H-55 Commando | -7/Data Miner | Free S-27 Virus | -7/Data Miner | Free X-67 Chaingunner | -7/Data Miner | Free M-22 Extractor | -7/Data Miner | Free Fabricated ------------ Nothing Alien Tech Used ----------------- None Achievements -------------- None Challenges ------------ None Game ------ Seed DataMatterActivator Manual? 0 Play Time 02:09:10 Cumulative 168.3 hours Start 2024.01.28 @ 00:17:13 End 2024.01.31 @ 20:46:36 Sessions 5 Manual Loads 0 Difficulty Adventurer Special Mode None Game No. 130 Rogue 0 Adventurer 130 Explorer 0 Win Type - Total 2 Types 2/0/0/0/0/0/0/0/0 Lore% 60 Gallery% 62 Achievement% 53 Wizard Run 0 Options --------- ASCII 0 Keyboard 0 Movement Mouse Keybinds 0 Fullscreen 2 Font 20/SmallcapsGlow Map View 66x50 Tactical HUD 1 Map Filters NONE Filters NONE Steam X RUN: dba4e6b4-314c-40a7-a1ca-5a2cbde682ff